Cogmind - Beta 15 @@@ ROGUE MODE // 2025.05.14 @ 14:01:29 Player: Miles Result: Destroyed by H-61 Shepherd with Heavy Assault Cannon Performance ------------- Evolutions (3) 1500 Regions Visited (5) 1000 Robots Destroyed (40) 200 Value Destroyed (1570) 1570 Prototype IDs (7) 140 Alien Tech Used (0) 0 Bonus (733) 733 TOTAL SCORE: 5143 Bonus ------- High Alert Combat Kills 45 Follower Combat Kills 688 Cogmind --------- Core Integrity 0/700 Matter 258/300 Energy 265/265 System Corruption 7% Temperature Cool (18) Movement Core (500) Ox9 Location -7/Factory Parts ------- > --- POWER (1) -------- Reinforced Ion Engine > --- PROPULSION (3) --- (None) > --- UTILITY (7) ------ Large Storage Unit Advanced Visual Processing Unit Improved Salvage Targeting Computer Target Analyzer Core Analyzer > --- WEAPON (2) ------- (None) > --- INVENTORY (15) --- Heavy Ion Engine Coolant Injector Drone Bay (0/2) Drone Bay (0/2) Enhanced Autogun Great Maul Peak State ------------ > --- POWER ------------ Light Angular Momentum Engine > --- PROPULSION ------- Aluminum Leg Titanium Leg Improved Carbon-fiber Leg > --- UTILITY ---------- Advanced Heat Sink Large Storage Unit Compact Matter Pod Core Analyzer Drone Bay Drone Bay Drone Bay > --- WEAPON ----------- Ion Cannon Precision Rocket Launcher > --- INVENTORY -------- Reinforced Ion Engine Heavy Ion Engine Heavy Ion Engine Aluminum Leg Aluminum Leg Improved Heat Sink Coolant Injector Compact Battery Advanced Visual Processing Unit Improved Salvage Targeting Computer Particle Gun Ion Cannon Enhanced Autogun Heavy Mace Great Maul [Rating: 54] Favorites ----------- Power Heavy Ion Engine Engine Heavy Ion Engine Propulsion Aluminum Leg Treads Improved Treads Leg Aluminum Leg Hover Unit Gravmag System Utility Improved Heat Sink Device Improved Heat Sink Storage Large Storage Unit Processor Core Analyzer Protection Core Shielding Weapon Ion Cannon Energy Gun Heavy Particle Gun Energy Cannon Ion Cannon Ballistic Gun Enhanced Autogun Ballistic Cannon Flak Cannon Launcher Precision Rocket Launcher Impact Weapon Great Maul Slashing Weapon Axe Build | -11 -10 -9 -8 -8 -7 ------- Run | Yrd Mat Mat Mat Sto Fac Slots Evolved 6 | . . 2 2 . 2 Power . | . . . . . . Propulsion 1 | . . 1 . . . Utility 5 | . . 1 2 . 2 Weapon . | . . . . . . Parts Attached 87 | 7 5 13 18 23 21 Power 10 | 1 1 2 1 3 2 Engine 10 | 1 1 2 1 3 2 Core . | . . . . . . Reactor . | . . . . . . Propulsion 23 | 2 1 4 3 8 5 Treads 1 | . . . 1 . . Leg 20 | 2 1 4 2 8 3 Wheel . | . . . . . . Hover 2 | . . . . . 2 Flight . | . . . . . . Utility 27 | 2 1 2 7 5 10 Device 13 | 1 . 1 2 3 6 Storage 4 | 1 . . 1 1 1 Processor 8 | . 1 . 3 1 3 Hackware . | . . . . . . Protection 2 | . . 1 1 . . Artifact . | . . . . . . Weapon 27 | 2 2 5 7 7 4 Energy Gun 11 | 2 1 4 2 1 1 Energy Cannon 6 | . 1 . 2 2 1 Ballistic Gun 1 | . . . 1 . . Ballistic Cannon 1 | . . . 1 . . Launcher 4 | . . 1 . 3 . Special Weapon . | . . . . . . Impact Weapon 3 | . . . 1 . 2 Slashing Weapon 1 | . . . . 1 . Piercing Weapon . | . . . . . . Special Melee Weapon . | . . . . . . Unidentified Prototypes 7 | . . 1 3 3 . Parts Lost 34 | . . 6 2 4 22 Power 4 | . . 2 . . 2 Propulsion 14 | . . 2 1 3 8 Utility 9 | . . 1 1 . 7 Weapon 7 | . . 1 . 1 5 Highest Loss Streak 9 | . . 5 2 2 9 To Critical Strikes . | . . . . . . Average Backups 11 | 3 7 7 11 14 11 Power 1 | 1 1 . . 2 2 Propulsion 1 | 1 2 1 . 1 1 Utility 4 | . 1 2 5 5 3 Weapon 4 | . 2 2 5 4 3 Tool/Special . | . . . . . . Unused Backups 31 | . 4 5 4 16 2 Power 3 | . . . . 2 1 Propulsion 5 | . 2 . . 3 . Utility 13 | . 1 2 2 7 1 Weapon 10 | . 1 3 2 4 . Tool/Special . | . . . . . . Average Slot Usage (%) 90 | . 99 95 70 96 94 Engine 7 | . 14 9 1 9 6 Leg 22 | . 28 31 14 25 16 Device 13 | . 5 10 12 12 18 Storage 15 | . 14 11 15 18 15 Processor 12 | . 8 10 7 13 17 Energy Gun 6 | . 25 21 6 . 2 Energy Cannon 5 | . 2 . 4 7 5 Ballistic Gun 1 | . . . 1 4 1 Impact Weapon 1 | . . . . . 3 Peak Build Rating 54 | 9 10 18 33 42 54 Average Rating 29 | 6 7 16 20 34 44 On Entrance 17 | . 9 7 13 33 42 Naked Turns . | . . . . . . Heaviest Build 63 | 11 13 17 47 47 63 Greatest Support 45 | 20 20 33 27 42 45 Greatest Overweight (x) 12 | . . 1 3 1 12 Average Overweight (x) . | . . . 1 . 1 Largest Inventory Capacity 15 | 8 8 8 15 15 15 Average Capacity 12 | 7 8 8 13 15 15 Most Carried 15 | 6 8 8 15 15 15 Average Carried 11 | 3 7 7 11 14 11 Final Capacity 15 | 8 8 8 15 15 15 Final Carried 15 | 6 8 7 15 15 6 Class Distribution -------------------- 72% | Mutant 15% | Scavenger-Mutant 12% | Commander-Mutant Dominant Class ---------------- Mutant | -10/Materials Mutant | -9/Materials Mutant | -8/Materials Mutant | -8/Storage Scavenger-Mutant | -7/Factory Resources | -11 -10 -9 -8 -8 -7 ----------- Run | Yrd Mat Mat Mat Sto Fac Matter Collected 1656 | 270 40 151 100 858 237 Remotely . | . . . . . . Salvage Created 1697 | 87 103 293 100 687 427 Parts 86 | 7 4 21 3 38 13 Haulers Intercepted 1 | . . . 1 . . Recyclers Shooed 3 | . . 2 . . 1 Parts Field Recycled . | . . . . . . Retrieved Matter . | . . . . . . Parts Self-Destructed . | . . . . . . Prevented . | . . . . . . Kills | -11 -10 -9 -8 -8 -7 ------- Run | Yrd Mat Mat Mat Sto Fac Combat Hostiles Destroyed 31 | . 2 4 2 12 11 Melee 4 | . . . . 3 1 Guns 8 | . 2 4 . 2 . Cannons 8 | . . . 1 6 1 AOE 8 | . . . . 1 7 Classes Destroyed 10 | 2 1 2 1 2 2 Worker 2 | . . 1 . 1 . Tunneler 2 | 2 . . . . . Hauler 1 | . . . 1 . . Recycler 3 | 1 . 1 . . 1 Operator 1 | . . . . 1 . Drone 3 | . . . . . 3 Grunt 15 | . 2 2 . 4 7 Brawler 1 | . . . . 1 . Sentry 13 | . . 2 2 7 2 Programmer 2 | . . . . . 2 Best Kill Streak 4 | 2 2 2 1 2 4 Combat Bots Only 4 | . 2 2 1 2 4 Max Kills in Single Turn 5 | 2 1 1 1 1 5 Gunslinging . | . . . . . . Exploded 3 | . . . . 1 3 Melee 1 | . . . . 1 1 Uniques/NPCs Destroyed . | . . . . . . Combat | -11 -10 -9 -8 -8 -7 -------- Run | Yrd Mat Mat Mat Sto Fac Hostile Shots Fired 499 | . 8 41 24 81 345 Missed 142 | . 2 10 . 22 108 Hits 357 | . 6 31 24 59 237 Melee 10 | . . 10 . . . Projectile 347 | . 6 21 24 59 237 Critical Strikes 11 | . 1 2 . 4 4 Part Disruptions 1 | . . . . . 1 Damage Taken 4923 | . 89 656 354 1062 2762 Core 1078 | . 28 127 47 162 714 Absorbed by Shields . | . . . . . . Core Remaining (%) 79 | 100 88 68 . 62 . Volleys Fired 106 | 8 7 24 8 32 27 Largest 2 | 2 2 2 2 2 2 Hottest 129 | 80 90 118 123 96 129 Shots Fired 169 | 16 14 39 16 47 37 Gun 98 | 16 14 37 6 17 8 Cannon 56 | . . . 10 24 22 Launcher 15 | . . 2 . 6 7 Special . | . . . . . . Kinetic 27 | . . . 7 17 3 Thermal 119 | 16 14 37 7 24 21 Explosive 12 | . . 2 . 3 7 Electromagnetic 11 | . . . 2 3 6 Robot Hit Streak 16 | 7 9 5 8 16 11 Robot Miss Streak 4 | 2 1 4 2 3 3 Penetration Max . | . . . . . . Secondary Targets . | . . . . . . Shots Hit Robots 138 | 11 10 23 20 34 40 Core Hits 68 | 4 5 10 5 20 24 Critical Kills 1 | . . . . . 1 Critical Parts Destroyed 6 | . . . 3 . 3 Critical Strikes 10 | . . 2 4 . 4 Burn 3 | . . 2 1 . . Smash 7 | . . . 3 . 4 Melee Attacks 35 | . . . 7 10 18 Impact 25 | . . . 7 . 18 Slashing 10 | . . . . 10 . Piercing . | . . . . . . Sneak Attacks 2 | . . . . 1 1 Combat Hostiles . | . . . . . . Follow-up Attacks . | . . . . . . Damage Inflicted 4985 | 133 118 631 554 1098 2451 Guns 998 | 133 118 405 96 164 82 Cannons 881 | . . . 200 393 288 Explosions 1860 | . . 219 . 243 1398 Melee 1190 | . . . 248 270 672 Ramming 56 | . . 7 10 28 11 Kinetic 368 | . . . 172 164 32 Thermal 1680 | 133 118 405 96 419 509 Explosive 1476 | . . 219 . 64 1193 Electromagnetic 215 | . . . 28 153 34 Impact 920 | . . . 248 . 672 Slashing 270 | . . . . 270 . Piercing . | . . . . . . Highest Corruption 8 | . . . 8 8 7 Average Corruption 6 | . . . 5 8 4 Corruption Purged . | . . . . . . Corruption Blocked . | . . . . . . Effects 79 | . . . 13 51 15 Message Errors 11 | . . . 1 10 . Matter Fused 21 | . . . 5 11 5 Heat Flow Errors 9 | . . . 1 7 1 Energy Discharges 11 | . . . 4 6 1 Parts Rejected 1 | . . . . 1 . Parts Fused 1 | . . . . 1 . Data Loss (minor) 13 | . . . . 9 4 Data Loss (major) 6 | . . . 1 2 3 Misfires 2 | . . . . 2 . Alerts 2 | . . . 1 1 . Weapon Failures 2 | . . . . 1 1 Overload Shots . | . . . . . . Overflow Damage 319 | . . . 90 10 219 Projectiles 22 | . . . . . 22 Explosions 56 | . . . . . 56 Melee 241 | . . . 90 10 141 Knockbacks 1 | . . . 1 . . Impact . | . . . . . . Kinetic 1 | . . . 1 . . Secondary . | . . . . . . Self-Inflicted Damage 299 | . . 80 . 162 57 Shots 8 | . . 2 . 4 2 Rammed . | . . . . . . Targets Rammed 8 | . . 2 1 4 1 Kicked 8 | . . 2 1 4 1 Crushed . | . . . . . . Highest Temperature 246 | 72 246 12 80 223 197 Average Temperature 48 | 29 119 5 21 61 41 Received Heat Transfer 1374 | . 66 135 108 459 606 Effects 1 | . 1 . . . . Energy Bleed 1 | . 1 . . . . Siege Activations . | . . . . . . Martial Activations . | . . . . . . Shielding Activations . | . . . . . . Robots Disrupted . | . . . . . . Combat Hostiles . | . . . . . . Robots Corrupted 4 | . . . 1 1 2 Combat Hostiles 3 | . . . 1 . 2 Parts Fried 5 | . . . 2 1 2 Impact Corruptions 13 | . . . 4 1 8 Robots Melted . | . . . . . . Combat Hostiles . | . . . . . . Parts Melted 4 | . 2 . . 1 1 Heat Transferred 3140 | 300 322 962 259 679 618 Parts Sabotaged . | . . . . . . Parts Stolen . | . . . . . . Parts Stripped . | . . . . . . Power Chain Reactions 1 | . . . . 1 . Alert | -11 -10 -9 -8 -8 -7 ------- Run | Yrd Mat Mat Mat Sto Fac Maximum Alert Level 2 | . . . . 2 2 Low Security (%) 73 | 100 100 100 100 64 38 Level 1 15 | . . . . 4 58 Level 2 10 | . . . . 30 3 Level 3 . | . . . . . . Level 4 . | . . . . . . Level 5 . | . . . . . . High Security . | . . . . . . Max Security . | . . . . . . Peak Influence 687 | 10 50 51 30 687 415 Initial 305 | . . 3 . . 305 Average 122 | 1 9 13 2 197 232 Influence Increases 2008 | 15 50 172 67 1263 441 Destroy 0b10 Robot/C 1020 | . 40 80 40 640 220 Destroy 0b10 Robot/NC 45 | 15 . 10 5 10 5 Destroy Leader 282 | . 10 30 22 160 60 Allied During Kill 281 | . . . . 281 . Successful Hack 46 | . . 1 . 7 38 Disable Machine 135 | . . 15 . 45 75 Destroy Structure 109 | . . 21 . 45 43 Partial Spotted 15 | . . 15 . . . Lose Combat Pursuer 75 | . . . . 75 . Influence Decreases 1990 | 15 40 182 67 592 1094 Entered New Map 373 | . . 7 . . 366 Time Decay 1070 | 15 40 148 67 372 428 Lost Part 287 | . . 27 . 40 220 Lost Ally 260 | . . . . 180 80 Squads Dispatched 13 | . . 1 . 4 8 Investigation 2 | . . . . . 2 Extermination 2 | . . . . . 2 Reinforcement 5 | . . 1 . 1 3 Assault . | . . . . . . Garrison 4 | . . . . 3 1 Intercept . | . . . . . . Searches Triggered . | . . . . . . Construction Impeded 1 | . . . . . 1 Haulers Reinforced . | . . . . . . Active Scanning Responses . | . . . . . . Cargo Convoy Interrupts . | . . . . . . Stealth | -11 -10 -9 -8 -8 -7 --------- Run | Yrd Mat Mat Mat Sto Fac Distress Signals 5 | . . 2 . 2 1 Communications Jammed 4 | . . . . 4 . Distress Signals 4 | . . . . 4 . Times Spotted 85 | . 3 18 6 40 18 Peak Tracking Total 5 | . 2 5 4 5 4 Tactical Retreats 3 | . . . . 3 . Traps | -11 -10 -9 -8 -8 -7 ------- Run | Yrd Mat Mat Mat Sto Fac Traps Triggered 1 | . . . 1 . . Indirectly . | . . . . . . Trap Hack Attempts . | . . . . . . Triggered . | . . . . . . Disarmed . | . . . . . . Reprogrammed . | . . . . . . Reused . | . . . . . . Traps Extracted . | . . . . . . Installed . | . . . . . . Triggered . | . . . . . . Machines | -11 -10 -9 -8 -8 -7 ---------- Run | Yrd Mat Mat Mat Sto Fac Machines Disabled 9 | . . 1 . 3 5 Max in Single Turn 3 | . . 1 . 1 3 Machines Repaired . | . . . . . . Machines Dismantled . | . . . . . . Machines Sabotaged . | . . . . . . Overloaded Fab Kills . | . . . . . . Hacking | -11 -10 -9 -8 -8 -7 --------- Run | Yrd Mat Mat Mat Sto Fac Machines Accessed 7 | . . 1 . 3 3 Terminals 3 | . . . . 3 . Fabricators . | . . . . . . Repair Stations . | . . . . . . Recycling Units . | . . . . . . Scanalyzers 4 | . . 1 . . 3 Garrison Access . | . . . . . . Total Hacks 19 | . . 5 . 3 11 Successful 12 | . . 4 . 3 5 Failed 7 | . . 1 . . 6 Catastrophic 1 | . . . . . 1 Database Lockouts . | . . . . . . Manual 1 | . . . . 1 . Terminals 3 | . . . . 3 . Fabricators . | . . . . . . Repair Stations . | . . . . . . Recycling Units . | . . . . . . Scanalyzers 16 | . . 5 . . 11 Garrison Access . | . . . . . . Terminal Hacks 3 | . . . . 3 . Open Door 3 | . . . . 3 . Fabricator Hacks . | . . . . . . Repair Station Hacks . | . . . . . . Recycling Unit Hacks . | . . . . . . Scanalyzer 9 | . . 4 . . 5 Insert Component 5 | . . 2 . . 3 Analyze 4 | . . 2 . . 2 Garrison Access Hacks . | . . . . . . Unauthorized Hacks . | . . . . . . Terminals . | . . . . . . Fabricators . | . . . . . . Repair Stations . | . . . . . . Recycling Units . | . . . . . . Scanalyzers . | . . . . . . Garrison Access . | . . . . . . Data Cores Recovered . | . . . . . . Used . | . . . . . . Hacking Detections 5 | . . 1 . 2 2 Full Trace Events 2 | . . . . . 2 Feedback Events 1 | . . . . . 1 Corruption 1 | . . . . . 1 Feedback Blocked . | . . . . . . Robot Schematics Acquired . | . . . . . . Robots Built . | . . . . . . Authchips . | . . . . . . Time . | . . . . . . Total Robot Build Rating . | . . . . . . Part Schematics Acquired 4 | . . 2 . . 2 Parts Built . | . . . . . . Authchips . | . . . . . . Time . | . . . . . . Total Part Build Rating . | . . . . . . Parts Repaired . | . . . . . . Time . | . . . . . . Parts Recycled . | . . . . . . Recycled Matter . | . . . . . . Retrieved Matter . | . . . . . . Retrieved Components . | . . . . . . Parts Scanalyzed 4 | . . 2 . . 2 Part Schematics Acquired 4 | . . 2 . . 2 Parts Damaged . | . . . . . . Bothacking | -11 -10 -9 -8 -8 -7 ------------ Run | Yrd Mat Mat Mat Sto Fac Used RIF Installer . | . . . . . . Robots Hacked . | . . . . . . Non-combat . | . . . . . . Combat . | . . . . . . Robot Hacks Applied . | . . . . . . Relay Couplers Released . | . . . . . . Fabnet Peak Effective % . | . . . . . . Robots Rewired . | . . . . . . Allies Hacked . | . . . . . . Hacks Repelled . | . . . . . . Allies | -11 -10 -9 -8 -8 -7 -------- Run | Yrd Mat Mat Mat Sto Fac Total Allies 10 | . . . . 10 . Largest Group 10 | . . . . 10 1 Highest-Rated Group 173 | . . . . 173 16 Highest-Rated Ally 29 | . . . . 29 16 Total Orders . | . . . . . . Ally Attacks 149 | . . . . 145 4 Total Damage 1707 | . . . . 1646 61 Kills 20 | . . . . 20 . Allies Corrupted . | . . . . . . Allies Melted . | . . . . . . Intel | -11 -10 -9 -8 -8 -7 ------- Run | Yrd Mat Mat Mat Sto Fac Active Infowar (turns) 1205 | 93 96 . 87 426 503 Optics 503 | . . . . . 503 Terrain 189 | 93 96 . . . . Jamming 513 | . . . 87 426 . Robot Analysis Total . | . . . . . . Derelict Logs Recovered . | . . . . . . Drone Launches 24 | . . . . 2 22 Drone Recoveries 15 | . . . . . 15 Exploration | -11 -10 -9 -8 -8 -7 ------------- Run | Yrd Mat Mat Mat Sto Fac Turns Passed 4302 | 151 254 610 863 1376 1048 Spaces Moved 2189 | 94 175 354 371 804 391 Core 9 | 6 . . . . 3 Treads . | . . . . . . Legs 2140 | 88 175 354 371 804 348 Wheels . | . . . . . . Hover 40 | . . . . . 40 Flight . | . . . . . . Fastest Speed 50 | 50 120 120 190 123 120 Average Speed 161 | 115 120 121 204 145 219 Slowest Speed 650 | 120 120 190 330 195 650 Overloaded Moves . | . . . . . . Propulsion Burnouts . | . . . . . . Robots Hopped . | . . . . . . Potential Cave-ins . | . . . . . . Cave-ins Triggered . | . . . . . . Exploration Rate (%) 28 | 6 29 25 28 73 11 Regions Visited 5 Branch Regions 1 Pre-discovered Areas . | . . . . . . Known Exits Taken . | . . . . . . Unknown Exits Taken 5 | 1 1 1 1 1 . Scrap Searched . | . . . . . . Spaces Dug . | . . . . . . Terrain Destroyed 108 | . . 17 . 39 52 Melee . | . . . . . . Projectile 3 | . . . . 3 . AOE 105 | . . 17 . 36 52 Terrain Rammed . | . . . . . . Walls Destroyed . | . . . . . . Machines Disabled . | . . . . . . Actions | -11 -10 -9 -8 -8 -7 --------- Run | Yrd Mat Mat Mat Sto Fac Total 2754 | 120 207 498 449 974 506 Wait 118 | . 4 69 6 19 20 Move 2184 | 93 174 353 370 803 391 Hop . | . . . . . . Pick Up 95 | 12 8 15 21 31 8 Fast Attach 23 | 1 2 3 10 4 3 Attach 50 | 6 . 7 5 14 18 Detach 7 | . . . 2 4 1 Swap 48 | . 3 9 4 16 16 Drop 80 | . 9 16 15 37 3 Fire 106 | 8 7 24 8 32 27 Melee 35 | . . . 7 10 18 Ram . | . . . . . . Kick 8 | . . 2 1 4 1 Crush . | . . . . . . Escape Stasis . | . . . . . . Rewire . | . . . . . . Trap . | . . . . . . Miscellaneous . | . . . . . . Route ------- -11/Scrapyard -10/Materials -9/Materials -8/Materials -8/Storage -7/Factory History --------- Turn | Location | Event 3 | -11/Scrapyard | Discovered new exit (range 15) 152 | -11/Scrapyard | Entered Materials 153 | -10/Materials | Met a group of wandering Federalists 309 | -10/Materials | Build established: Mutant 395 | -10/Materials | Discovered new exit (range 10) 406 | -10/Materials | Entered another Materials area 406 | -9/Materials | Evolved 2 slots: Propulsion x1, Utility x1 838 | -9/Materials | Discovered new exit (range 4) 1016 | -9/Materials | Entered another Materials area 1016 | -8/Materials | Evolved 2 slots: Utility x2 1024 | -8/Materials | Lost 5 parts (1p2n1u1w) 1713 | -8/Materials | Discovered new exit (range 11) 1879 | -8/Materials | Entered Storage 2609 | -8/Storage | Assisted by bots powering up and referring to "LRC-V3" 2760 | -8/Storage | Garrison activated, responded to threat 2915 | -8/Storage | Build established: Commander-Mutant 3202 | -8/Storage | Lost 3 allies 3226 | -8/Storage | Discovered new exit (range 15) 3255 | -8/Storage | Entered Factory 3255 | -7/Factory | Accompanied by 3 allies 3255 | -7/Factory | Evolved 2 slots: Utility x2 3489 | -7/Factory | Build established: Scavenger-Mutant 3503 | -7/Factory | Lost 4 allies 3550 | -7/Factory | Lost 3 parts (1n2u) 3742 | -7/Factory | Lost 4 allies 3823 | -7/Factory | Build established: Mutant 3954 | -7/Factory | Lost 9 parts (1p3n2u3w) 4242 | -7/Factory | Build established: Scavenger-Mutant 4283 | -7/Factory | Garrison activated, responded to threat 4293 | -7/Factory | Core integrity fell below 50% 4298 | -7/Factory | Core integrity fell below 20% 4303 | -7/Factory | Destroyed by H-61 Shepherd with Heavy Assault Cannon Last Messages --------------- 04292_ Knocked back. 04293_ Acquired 13 matter. 04293_ U-05 Engineer lays Concrete. 04294_ Penetrated by Slug. 04294_ Slug penetrates Door. 04294_ Knocked back. 04295_ U-05 Engineer lays Concrete. 04297_ Knocked back. 04297_ U-05 Engineer lays Concrete. 04297_ Penetrated by Slug. 04298_ U-05 Engineer lays Concrete. 04299_ Particle Gun destroyed. 04299_ U-05 Engineer lays Concrete. 04300_ Penetrated by Slug. 04300_ Com. Battery destroyed. 04301_ U-05 Engineer lays Concrete. 04301_ Penetrated by Slug. 04301_ U-05 Engineer lays Concrete. 04302_ The unstable cave ceiling collapses. 04302_ U-05 Engineer lays Concrete. Map ----- +----------------------------------------------------+ | ??????????????? #### # ?? | | ???????????????? ???#=############## | | ????????????????######+########???# %!% + ] ! | | ????????????????????????????????###+##### | | ????????????????????????????????#! ## | | ????????????????????????????????# ## "" " | | ????????????????????????????????# ## "" " | | ????????????????????????????????# ## """ " | | ????????????????????????????????# !## """ " | | ????????????????????????????????# ## """ " | | ????????????????????????????????# """" ##"S | | ????????????????????????????????# """" ##""" | | ????????????????????????????????# """" ## "" | | ??????????????#?????????????????# """" ## | | ??????????????# ????????????????# """" ##########+ | | ??????????????+ ????????????????# """" #????# | | ???????# "????# ???????????????# #????# | | ???????# ""???# ???????????????############# | | ???????# """??# ?##############???# | | ???????# ?# # #???# ######## | | ???????# # # ##### #??????# | | ???????# # # ! ; #??????# | | ??????????# a # #?##########+ | | ??????????# # ### | | ##### [% ; + """ """ " | | u x @[ ######### """ """ " | | ??# H % % #???????# """ """ " | | ??# ! ux %% % #???????# | | ??######+## # #???????# """ """ " | | ??????????# #???????# """ """ " | | ??????????# # #???????# """ """ " | | ??????????## u###############???????# | | ???????????# Yg ??????????????????????########### | | ???????????# ????????????????????????????????? | | ??????????+ ?????????????????????????????????? | | ????????? ## ?????????????????????????????????? | | ???????????# ??????????????????????????????????? | | ???????????# ??????????????????????????????????? | | ???????????# ??????????????????????????????????? | | ??????????? ???????????????????????????????????? | | ?????????? ???????????????????????????????????? | | ?????????? ????????????????????????????????????? | | ?????????????????????????????????????????????????? | | ?????????????????????????????????????????????????? | | ?????????????????????????????????????????????????? | | ?????????????????????????????????????????????????? | | ?????????????????????????????????????????????????? | | ?????????????????????????????????????????????????? | | ?????????????????????????????????????????????????? | | ?????????????????????????????????????????????????? | +----------------------------------------------------+ Best States ------------- Heat Dissipation 53 Energy Generation 18 Energy Capacity 480 Matter Stores 450 Matter Capacity 450 Sight Range 20 Terrain Scan Range 16 Terrain Scan Density 10 Jamming Range 12 Core Shielding 20 Evasion (%) 55 Targeting Accuracy 12 Target Analysis 5 Core Analysis 9 Particle Charging 15 Salvage Targeting 2 Item Schematics ----------------- Core Shielding | -9/Materials | Scanalyzed Imp. Aluminum Leg | -9/Materials | Scanalyzed Drone Bay | -7/Factory | Scanalyzed Aluminum Leg | -7/Factory | Scanalyzed Robot Schematics ------------------ None Fabricated ------------ Nothing Repaired ---------- Nothing Alien Tech Used ----------------- None Achievements -------------- None Challenges ------------ None Game ------ Seed ParticleShadingSlayer Manual? 0 Play Time 00:46:45 Cumulative 19.8 hours Start 2025.05.14 @ 13:14:44 End 2025.05.14 @ 14:01:29 Sessions 1 Manual Loads 0 Difficulty Rogue Special Mode None Game No. 38 Rogue 38 Adventurer 0 Explorer 0 Win Type - Total 0 Types 0/0/0/0/0/0/0/0/0/0 Lore% 6 Gallery% 22 Achievement% 17 Wizard Run 0 Options --------- Layout 1 ASCII 0 Keyboard 0 Movement Mouse Keybinds 0 Fullscreen 1 Font 24/Smallcaps Map View 50x35 Zoom Use 0% Tactical HUD 1 Map Filters NONE Filters NONE Steam 1 RUN: 748ce227-9231-44b0-af03-e19bca1a985f